bitfinex/quotes_BTCUSD_20240717
["timestamp","ask_amount","ask_price","bid_price","bid_amount"]
[1721215144088,0.002794,64936.0,64926.0,0.02081316]
[1721215144311,0.05,64934.0,64932.0,0.005]
[1721215144488,0.052794,64933.0,64932.0,0.005]
[1721215144690,0.56304871,64941.0,64932.0,0.028]
[1721215144691,0.05,64934.0,64932.0,0.028]
[1721215144973,0.05,64938.0,64932.0,0.005]
[1721215145143,0.05,64938.0,64926.0,0.017733]
[1721215145144,0.002794,64937.0,64933.0,0.023]
[1721215145557,0.002794,64937.0,64927.0,0.023]
[1721215145770,0.002794,64937.0,64928.0,0.0116833]
[1721215145771,0.05,64936.0,64928.0,0.0116833]
[1721215145917,0.002794,64935.0,64929.0,0.023]
[1721215146121,0.1,64941.0,64929.0,0.023]
[1721215146122,0.002794,64937.0,64932.0,0.005]
[1721215146326,0.002794,64939.0,64933.0,0.023]
[1721215146733,0.002794,64941.0,64933.0,0.023]
[1721215146922,0.002794,64941.0,64929.0,0.023]
[1721215147165,0.052794,64941.0,64929.0,0.023]
[1721215147369,0.05,64935.0,64929.0,0.023]
[1721215147568,0.07717479,64940.0,64929.0,0.023]
[1721215147569,0.05,64933.0,64929.0,0.023]
[1721215148055,0.05,64934.0,64929.0,0.023]
[1721215148258,0.05,64930.0,64929.0,0.023]
[1721215148532,0.05,64927.0,64926.0,0.017733]
[1721215148742,0.05,64927.0,64915.0,0.0802]
[1721215148946,0.05,64927.0,64925.0,0.000913]
[1721215148947,0.002794,64926.0,64925.0,0.000913]
[1721215149142,0.052794,64926.0,64925.0,0.000913]
[1721215149342,0.05,64926.0,64925.0,0.000913]
[1721215149695,0.07717479,64933.0,64925.0,0.000913]
[1721215149696,0.002794,64929.0,64925.0,0.000913]
[1721215150238,0.002794,64929.0,64915.0,0.0802]
[1721215150239,0.002794,64929.0,64915.0,0.25919321]
[1721215150486,0.001,64934.0,64915.0,0.25919321]
[1721215150487,0.002794,64933.0,64917.0,0.0634]
[1721215150687,0.46387871,64941.0,64925.0,0.014]
[1721215150688,0.002794,64940.0,64925.0,0.014]
[1721215150890,0.002794,64940.0,64927.0,0.0634]
[1721215151089,0.002794,64940.0,64928.0,0.0257089]
[1721215151270,0.002794,64940.0,64929.0,0.023]
[1721215151670,0.002794,64940.0,64930.0,0.00230728]
[1721215152192,0.003794,64940.0,64931.0,0.15438174]
[1721215152392,0.003794,64940.0,64933.0,0.0645]
[1721215152393,0.001,64940.0,64933.0,0.0645]
[1721215152596,0.001,64940.0,64934.0,0.20086991]
[1721215152937,0.001,64940.0,64935.0,0.02530647]
[1721215153218,0.001,64940.0,64936.0,0.15438174]
[1721215153418,0.001,64940.0,64937.0,0.1012]
[1721215153618,0.001,64940.0,64938.0,0.19333873]
[1721215153794,0.001,64940.0,64939.0,0.023]
[1721215153996,0.002,64940.0,64939.0,0.023]
[1721215154182,0.002,64940.0,64939.0,0.24268807]
[1721215154380,0.00083,64941.0,64939.0,0.24268807]
[1721215154673,0.00083,64941.0,64940.0,0.19036625]
[1721215154878,0.00083,64941.0,64940.0,0.21336625]
[1721215155977,0.00183,64941.0,64940.0,0.21936625]
[1721215156757,0.07900479,64941.0,64940.0,0.006]
[1721215156943,0.38723564,64941.0,64940.0,0.006]
[1721215157149,0.53582964,64941.0,64940.0,0.006]
[1721215157977,0.53582964,64941.0,64940.0,0.014]
[1721215157978,0.53482964,64941.0,64940.0,0.014]
[1721215158184,0.53582964,64941.0,64940.0,0.006]
[1721215158360,0.53198053,64941.0,64940.0,0.006]
[1721215158565,0.05,64934.0,64914.0,0.00230823]
[1721215158771,0.12996879,64933.0,64915.0,0.20624404]
[1721215159114,0.05,64925.0,64915.0,0.0518623]
[1721215159387,0.05,64925.0,64913.0,0.0804]
[1721215159388,0.002794,64924.0,64913.0,0.0804]
[1721215159546,0.05,64927.0,64913.0,0.0804]
[1721215159547,0.002794,64926.0,64913.0,0.0804]
[1721215159944,0.002794,64928.0,64914.0,0.15438174]
[1721215160167,0.002794,64929.0,64915.0,0.02949817]
[1721215160366,0.05,64933.0,64915.0,0.02949817]
[1721215160367,0.002794,64932.0,64915.0,0.02949817]
[1721215160570,0.05,64931.0,64915.0,0.02949817]
[1721215160763,0.052794,64930.0,64916.0,0.03244799]
[1721215160968,0.052794,64930.0,64917.0,0.023]
[1721215161896,0.23155653,64929.0,64917.0,0.023]
[1721215162005,0.05,64925.0,64917.0,0.023]
[1721215162209,0.23155653,64929.0,64917.0,0.023]
[1721215162210,0.05,64923.0,64917.0,0.023]
[1721215162425,0.002794,64922.0,64918.0,0.0135848]
[1721215162587,0.002794,64922.0,64919.0,0.023]
[1721215163197,0.05,64923.0,64919.0,0.023]
[1721215163390,0.05,64925.0,64919.0,0.023]
[1721215163617,0.003,64930.0,64919.0,0.023]
[1721215163618,0.002794,64924.0,64919.0,0.023]
[1721215163901,0.004,64930.0,64919.0,0.023]
[1721215163902,0.002794,64929.0,64919.0,0.023]
[1721215164104,0.002794,64929.0,64920.0,0.15438174]
[1721215164252,0.003,64930.0,64921.0,0.04209665]
[1721215164451,0.003,64930.0,64921.0,0.19647839]
[1721215164654,0.001,64923.0,64921.0,0.19647839]
[1721215165401,0.002794,64934.0,64921.0,0.19647839]
[1721215165614,0.002794,64934.0,64923.0,0.0796]
[1721215165789,0.003,64930.0,64924.0,0.20522039]
[1721215165947,0.001,64929.0,64924.0,0.20522039]
[1721215166984,0.001,64929.0,64925.0,0.0661]
[1721215167233,0.00083,64941.0,64925.0,0.0661]
[1721215167234,0.46667271,64941.0,64928.0,0.2]
[1721215167440,0.46667271,64941.0,64929.0,0.25404454]
[1721215167562,0.001,64934.0,64929.0,0.27704454]
[1721215167767,0.001,64934.0,64930.0,0.00230696]
[1721215167973,0.001,64934.0,64930.0,0.1566887]
[1721215168149,0.001,64934.0,64931.0,0.06248331]
[1721215168358,0.00083,64941.0,64931.0,0.06248331]
[1721215168570,0.00183,64941.0,64931.0,0.06248331]
[1721215168774,0.001,64934.0,64932.0,0.15438174]
[1721215169039,0.001,64934.0,64933.0,0.12290348]
[1721215169328,0.00183,64941.0,64933.0,0.27728522]
[1721215169329,0.00083,64941.0,64933.0,0.27728522]
[1721215169546,0.00083,64941.0,64934.0,0.15438174]
[1721215169750,0.00083,64941.0,64935.0,0.023]
[1721215169958,0.00083,64941.0,64937.0,0.0605]
[1721215170180,0.00083,64941.0,64938.0,0.17738174]
[1721215170774,0.00083,64941.0,64939.0,0.11102979]
[1721215171008,0.00083,64941.0,64940.0,0.28841019]
[1721215171211,0.00083,64941.0,64940.0,0.29071633]
[1721215171424,0.00033908,64941.0,64940.0,0.42431569]
[1721215171848,0.00133908,64941.0,64940.0,0.42431569]
[1721215172060,0.00133908,64941.0,64940.0,1.36201569]
[1721215172267,0.00133908,64941.0,64940.0,1.26498724]
[1721215172268,0.00033908,64941.0,64940.0,1.26498724]
[1721215172469,2.0,64942.0,64940.0,1.26498724]
[1721215172470,2.0,64942.0,64941.0,0.2774]
[1721215172670,2.0,64942.0,64941.0,0.74559623]
[1721215172818,2.0,64942.0,64941.0,1.44559623]
[1721215173204,2.0,64942.0,64941.0,1.50669623]
[1721215176224,0.00836,64958.0,64957.0,0.15438174]
[1721215176458,0.00836,64958.0,64948.0,0.3734]
[1721215176459,0.00836,64958.0,64955.0,0.2]
[1721215176645,0.00836,64958.0,64948.0,0.3734]
[1721215176849,0.00836,64958.0,64948.0,0.15438174]
[1721215177311,0.00836,64958.0,64948.0,0.35438174]
[1721215177513,0.00836,64958.0,64957.0,0.014]
[1721215177706,0.19936,64958.0,64957.0,0.014]
[1721215178274,0.29936,64958.0,64957.0,0.014]
[1721215178473,0.45374174,64958.0,64957.0,0.014]
[1721215178699,0.45374174,64958.0,64929.0,0.77]
[1721215178901,0.05,64950.0,64930.0,0.35438174]
[1721215179110,0.05,64950.0,64948.0,0.006]
[1721215179354,0.24936,64958.0,64948.0,0.006]
[1721215179482,0.002794,64957.0,64949.0,0.15668649]
[1721215179681,0.002794,64957.0,64949.0,0.15668604]
[1721215179876,0.15036,64958.0,64949.0,0.15668604]
[1721215180319,0.08496,64958.0,64950.0,0.023]
[1721215180496,0.00836,64958.0,64951.0,0.15668558]
[1721215180733,0.00836,64958.0,64952.0,0.023]
[1721215180938,0.01436,64958.0,64957.0,0.001]
[1721215181361,0.01436,64958.0,64949.0,0.2]
[1721215181362,0.05836,64958.0,64935.0,0.0015]
[1721215181597,0.05836,64958.0,64936.0,0.11231252]
[1721215181598,0.05,64944.0,64936.0,0.11231252]
[1721215181715,0.05,64944.0,64926.0,0.29188213]
[1721215181716,0.00384954,64943.0,64920.0,0.05161579]
[1721215181933,0.0826,64933.0,64921.0,0.15438174]
[1721215182169,0.0826,64933.0,64916.0,0.0015]
[1721215182170,0.002794,64932.0,64916.0,0.0015]
[1721215182369,0.002794,64932.0,64917.0,0.15669014]
[1721215182572,0.0826,64933.0,64917.0,0.15669014]
[1721215182795,0.0826,64933.0,64918.0,0.1120159]
[1721215183128,0.0826,64933.0,64919.0,0.15438174]
[1721215183515,0.0796,64941.0,64922.0,0.2]
[1721215183709,0.002794,64940.0,64934.0,0.000913]
[1721215185056,0.002794,64940.0,64934.0,0.15529474]
[1721215185256,0.0796,64941.0,64935.0,0.023]
[1721215185848,0.001,64940.0,64935.0,0.023]
[1721215186269,0.002,64940.0,64935.0,0.023]
[1721215186489,0.07996879,64939.0,64935.0,0.023]
[1721215186705,0.0662,64938.0,64935.0,0.023]
[1721215186947,0.002794,64937.0,64935.0,0.023]
[1721215187283,0.0662,64938.0,64935.0,0.031]
[1721215187478,0.0662,64938.0,64935.0,0.038]
[1721215188003,0.0662,64938.0,64935.0,0.023]
[1721215188170,0.001,64937.0,64935.0,0.033]
[1721215188581,0.002794,64936.0,64935.0,0.023]
[1721215188798,0.0662,64938.0,64935.0,0.023]
[1721215188799,0.002794,64937.0,64935.0,0.023]
[1721215189002,0.002794,64937.0,64935.0,0.033]
[1721215189219,0.0662,64938.0,64935.0,0.023]
[1721215189631,0.001,64937.0,64935.0,0.033]
[1721215190025,0.0662,64938.0,64935.0,0.023]
[1721215190433,0.05,64936.0,64935.0,0.009]
[1721215190674,0.35208174,64936.0,64935.0,0.019]
[1721215190829,0.45208174,64936.0,64935.0,0.019]
[1721215191029,0.45208174,64936.0,64935.0,0.009]
[1721215191232,0.45208174,64936.0,64935.0,0.019]
[1721215191405,0.45208174,64936.0,64935.0,0.01]
[1721215191612,0.05,64935.0,64934.0,0.000913]
[1721215191808,0.20438174,64935.0,64934.0,0.000913]
[1721215192044,0.15,64935.0,64934.0,0.000913]
[1721215193566,0.1677,64936.0,64934.0,0.000913]
[1721215193811,0.002794,64935.0,64934.0,0.000913]
[1721215194332,0.019794,64935.0,64934.0,0.002913]
[1721215194538,0.017,64935.0,64934.0,0.024913]
[1721215194751,0.1477,64936.0,64934.0,0.023913]
[1721215194897,0.1477,64936.0,64935.0,0.023]
[1721215194898,0.1507,64936.0,64935.0,0.023]
[1721215195302,0.1477,64936.0,64935.0,0.023]
[1721215196910,0.1487,64936.0,64935.0,0.023]
[1721215197129,0.1497,64936.0,64935.0,0.023]
[1721215197336,0.001,64936.0,64935.0,0.17738174]
[1721215197628,0.0659,64949.0,64935.0,0.17738174]
[1721215197826,0.002794,64947.0,64936.0,0.15438174]
[1721215198027,0.05,64946.0,64937.0,0.023]
[1721215198254,0.05,64948.0,64938.0,0.15438174]
[1721215198451,0.12717479,64946.0,64939.0,0.023]
[1721215198610,0.05,64944.0,64939.0,0.023]
[1721215198914,0.0659,64949.0,64939.0,0.023]
[1721215198915,0.001,64947.0,64939.0,0.023]
[1721215199120,0.05,64948.0,64939.0,0.023]
[1721215199544,0.0659,64949.0,64939.0,0.023]
[1721215199757,0.05,64944.0,64939.0,0.023]
[1721215199961,0.002794,64943.0,64939.0,0.023]
[1721215200164,0.002794,64947.0,64939.0,0.023]
[1721215200337,0.0659,64949.0,64935.0,0.023]
[1721215200559,0.002794,64948.0,64938.0,0.008]
[1721215200764,0.001,64946.0,64939.0,0.02530598]
[1721215201194,0.001,64946.0,64938.0,0.023]
[1721215201364,0.05,64945.0,64938.0,0.023]
[1721215201566,0.05,64940.0,64937.0,0.023]
[1721215201790,0.12717479,64944.0,64939.0,0.01]
[1721215202026,0.0659,64949.0,64939.0,0.01]
[1721215202027,0.001,64943.0,64940.0,0.023]
[1721215202543,0.001,64943.0,64940.0,0.15438174]
[1721215202744,0.001,64943.0,64941.0,0.023]
[1721215203178,0.001,64943.0,64942.0,0.15668749]
[1721215203363,0.001,64943.0,64942.0,0.13168749]
[1721215203554,0.001,64943.0,64942.0,0.15468749]
[1721215203929,0.001,64945.0,64942.0,0.26565279]
[1721215204136,0.05,64974.0,64944.0,0.2]
[1721215204337,0.04544675,64983.0,64945.0,0.11096364]
[1721215204338,0.52934871,64951.0,64945.0,0.11096364]
[1721215204511,0.52934871,64951.0,64942.0,0.023]
[1721215204512,0.0663,64951.0,64946.0,0.023]
[1721215204723,0.07717479,64950.0,64946.0,0.023]
[1721215204930,0.07717479,64950.0,64942.0,0.014]
[1721215204931,0.05,64945.0,64942.0,0.009]
[1721215205151,0.19347479,64943.0,64942.0,0.009]
[1721215205299,0.0826,64935.0,64934.0,0.000913]
[1721215205513,0.1326,64935.0,64934.0,0.000913]
[1721215206121,0.35328174,64935.0,64934.0,0.000913]
[1721215207233,0.1489,64935.0,64934.0,0.000913]
[1721215207427,0.1989,64935.0,64934.0,0.000913]
[1721215207830,0.35328174,64935.0,64934.0,0.000913]
[1721215208062,0.45328174,64935.0,64934.0,0.000913]
[1721215208662,0.45428174,64935.0,64934.0,0.000913]
[1721215208863,0.45328174,64935.0,64934.0,0.000913]
[1721215209373,0.45428174,64935.0,64934.0,0.000913]
[1721215209576,0.45328174,64935.0,64934.0,0.000913]
[1721215209752,0.1489,64935.0,64934.0,0.000913]
[1721215209962,0.1499,64935.0,64934.0,0.000913]
[1721215210314,0.001,64935.0,64934.0,0.000913]
[1721215210718,0.003,64935.0,64934.0,0.000913]
[1721215210916,0.053,64935.0,64934.0,0.000913]
[1721215211120,0.051,64935.0,64934.0,0.000913]
[1721215211320,0.05,64935.0,64934.0,0.000913]
[1721215211577,0.051,64935.0,64934.0,0.000913]
[1721215211750,0.052,64935.0,64934.0,0.000913]
[1721215211941,0.002,64935.0,64934.0,0.000913]
[1721215212141,0.001,64935.0,64934.0,0.000913]
[1721215212401,0.051,64935.0,64934.0,0.001913]
[1721215212753,0.051,64935.0,64934.0,0.000913]
[1721215212957,0.051,64935.0,64934.0,0.002913]
[1721215213149,0.001,64935.0,64934.0,0.002913]
[1721215213549,0.0625,64940.0,64934.0,0.002913]
[1721215213809,0.15438174,64939.0,64934.0,0.002913]
[1721215214289,0.20438174,64939.0,64934.0,0.002913]
[1721215214691,0.05,64935.0,64934.0,0.002913]
[1721215215302,0.05,64937.0,64934.0,0.000913]
[1721215215696,0.005,64939.0,64934.0,0.000913]
[1721215215897,0.002,64939.0,64934.0,0.000913]
[1721215216250,0.002,64939.0,64934.0,0.002913]
[1721215216401,0.052,64939.0,64934.0,0.002913]
[1721215216602,0.05,64935.0,64934.0,0.000913]
[1721215216811,0.35263192,64935.0,64934.0,0.000913]
[1721215217013,0.45263192,64935.0,64934.0,0.000913]
[1721215218396,1.9182306,64935.0,64934.0,0.000913]
[1721215218732,1.52678174,64935.0,64934.0,0.000913]
[1721215218912,1.52878174,64935.0,64934.0,0.001913]
[1721215219413,1.52678174,64935.0,64934.0,0.000913]
[1721215220095,1.52678174,64935.0,64934.0,0.002913]
[1721215220295,0.86078174,64935.0,64934.0,0.002913]
[1721215220495,0.86078174,64935.0,64934.0,0.000913]
[1721215220496,0.2905,64935.0,64934.0,0.000913]
[1721215220724,0.1365,64935.0,64934.0,0.000913]
[1721215220925,0.1555,64935.0,64934.0,0.001913]
[1721215221130,0.0895,64935.0,64934.0,0.001913]
[1721215221339,0.009,64935.0,64934.0,0.46392]
[1721215221528,0.05,64942.0,64936.0,0.153996]
[1721215221529,0.153986,64941.0,64936.0,0.153996]
[1721215221908,0.1299,64944.0,64937.0,0.30799]
[1721215222134,0.002794,64943.0,64941.0,0.153984]
[1721215222346,0.002794,64943.0,64942.0,0.153983]
[1721215222556,0.002794,64943.0,64939.0,0.307977]
[1721215222557,0.0799,64944.0,64941.0,0.153985]
[1721215223074,0.0799,64944.0,64939.0,0.307978]
[1721215223302,0.0799,64944.0,64934.0,0.332917]
[1721215223303,0.002794,64943.0,64942.0,0.153983]
[1721215223502,0.00083,64948.0,64942.0,0.023]
[1721215223727,0.002794,64947.0,64945.0,0.153974]
[1721215223927,0.00083,64948.0,64946.0,0.153972]
[1721215225905,0.00083,64948.0,64947.0,0.153971]
[1721215226218,0.00083,64948.0,64947.0,0.461914]
[1721215226860,0.00083,64948.0,64947.0,0.769857]
[1721215227478,0.00083,64948.0,64947.0,0.770857]
[1721215227795,0.00083,64948.0,64947.0,0.462914]
[1721215228133,0.00083,64948.0,64947.0,0.769857]
[1721215228339,0.00083,64948.0,64947.0,1.23218174]
[1721215228593,0.00083,64948.0,64947.0,1.1058]
[1721215229007,0.00083,64948.0,64947.0,1.1008]
[1721215229400,0.00083,64948.0,64947.0,1.26618174]
[1721215229607,0.00183,64948.0,64947.0,1.27318174]
[1721215230031,0.00083,64948.0,64947.0,1.77412474]
[1721215230236,0.00183,64948.0,64947.0,1.78112474]
[1721215230584,0.00083,64948.0,64947.0,1.77412474]
[1721215230780,0.00183,64948.0,64947.0,1.78112474]
[1721215230987,0.00183,64948.0,64947.0,1.77012474]
[1721215231215,0.00083,64948.0,64947.0,1.77012474]
[1721215231422,0.00183,64948.0,64947.0,1.77712474]
[1721215231753,0.00183,64948.0,64947.0,1.87938761]
[1721215231935,0.00183,64948.0,64947.0,1.37144461]
[1721215232135,0.00183,64948.0,64947.0,0.174971]
[1721215232344,0.574437,64948.0,64947.0,0.021]
[1721215232546,1.34469474,64948.0,64947.0,0.007]
[1721215232744,1.35560654,64948.0,64947.0,0.007]
[1721215233023,1.35560654,64948.0,64936.0,0.153997]
[1721215233024,0.203987,64941.0,64936.0,0.153997]
[1721215233222,0.07717479,64940.0,64936.0,0.153997]
[1721215233466,0.08800688,64940.0,64934.0,0.308917]
[1721215233669,0.01083209,64940.0,64936.0,0.307993]
[1721215233872,0.01083209,64940.0,64939.0,0.461971]
[1721215234072,0.06153,64948.0,64934.0,0.000913]
[1721215234073,0.06153,64948.0,64947.0,0.153971]
[1721215234247,0.06153,64948.0,64946.0,0.153973]
[1721215234607,0.002794,64947.0,64946.0,0.461921]
[1721215234808,0.07230126,64948.0,64947.0,0.461914]
[1721215235084,0.06353,64948.0,64947.0,0.153971]
[1721215235285,0.07435977,64948.0,64947.0,0.153971]
[1721215235489,0.00083,64948.0,64947.0,0.792857]
[1721215236375,0.00083,64948.0,64947.0,1.1008]
[1721215237006,0.00183,64948.0,64947.0,1.1058]
[1721215237208,0.00183,64948.0,64947.0,1.26018174]
[1721215237617,0.00183,64948.0,64947.0,1.26518174]
[1721215237842,0.00183,64948.0,64947.0,1.57312474]
[1721215238027,0.00183,64948.0,64947.0,1.68257434]
[1721215238320,0.00183,64948.0,64947.0,1.68257405]
[1721215238530,0.00183,64948.0,64947.0,1.57312474]
[1721215238664,0.00183,64948.0,64947.0,1.56812474]
[1721215238861,0.00183,64948.0,64947.0,1.58212474]
[1721215239512,0.00183,64948.0,64947.0,1.56812474]
[1721215239921,0.00083,64948.0,64947.0,2.18994421]
[1721215240120,0.00083,64948.0,64947.0,2.28994421]
[1721215240890,0.00083,64948.0,64947.0,2.31794421]
[1721215241064,0.00083,64948.0,64947.0,2.21027061]
[1721215241273,0.00083,64948.0,64947.0,2.51821361]
[1721215241466,0.00083,64948.0,64947.0,2.50421361]
[1721215241645,0.00083,64948.0,64947.0,2.49021361]
[1721215241851,0.00083,64948.0,64947.0,2.01027061]
[1721215242011,0.00083,64948.0,64947.0,2.21027061]
[1721215242216,0.00083,64948.0,64947.0,2.18227061]
[1721215242592,0.00083,64948.0,64947.0,2.71027061]
[1721215242990,0.00083,64948.0,64947.0,3.01821361]
[1721215243984,0.00083,64948.0,64947.0,3.00421361]
[1721215244391,0.00083,64948.0,64947.0,3.01821361]
[1721215244593,0.00083,64948.0,64947.0,3.00421361]
[1721215244791,0.00083,64948.0,64947.0,3.01821361]
[1721215244993,0.00083,64948.0,64947.0,3.00421361]
[1721215245195,0.00836,64958.0,64957.0,1.585527]
[1721215245529,0.00836,64958.0,64957.0,1.76290874]
[1721215245962,0.00836,64958.0,64957.0,2.07080374]
[1721215246140,0.00836,64958.0,64957.0,2.08020374]
[1721215246309,0.00836,64958.0,64957.0,2.18926239]
[1721215246507,0.00836,64958.0,64957.0,2.08020374]
[1721215247115,0.002794,64975.0,64970.0,1.693087]
[1721215247329,0.00084,64984.0,64970.0,1.76263474]
[1721215247570,0.05084,64984.0,64970.0,1.76263474]
[1721215247739,0.00084,64984.0,64970.0,1.76263474]
[1721215248505,0.00084,64984.0,64970.0,1.77663474]
[1721215249252,0.00084,64984.0,64970.0,1.79063474]
[1721215249632,0.07346,64971.0,64970.0,0.820585]
[1721215249949,0.07346,64971.0,64970.0,1.28280074]
[1721215250349,0.07346,64971.0,64970.0,1.114419]
[1721215250549,0.07346,64971.0,64970.0,0.806585]
[1721215250805,0.07346,64971.0,64970.0,0.051]
[1721215251004,0.07346,64971.0,64970.0,0.204917]
[1721215251273,0.0822842,64971.0,64970.0,0.484751]
[1721215251452,0.0822842,64971.0,64970.0,0.512751]
[1721215251652,0.07346,64971.0,64970.0,0.820585]
[1721215251855,0.0822842,64971.0,64970.0,0.806585]
[1721215252055,0.0822842,64971.0,64970.0,0.820585]
[1721215252260,0.07346,64971.0,64970.0,0.820585]
[1721215252443,0.07346,64971.0,64970.0,0.806585]
[1721215252670,0.07346,64971.0,64970.0,1.190069]
[1721215252870,0.07346,64971.0,64970.0,0.882235]
[1721215253071,0.07346,64971.0,64970.0,0.820585]
[1721215253713,0.07346,64971.0,64970.0,0.806585]
[1721215254094,0.07346,64971.0,64970.0,0.820585]
[1721215254679,0.07346,64971.0,64970.0,1.28280074]
[1721215255102,0.00836,64971.0,64970.0,1.28280074]
[1721215260771,0.00836,64971.0,64970.0,0.97496674]
[1721215260964,0.00836,64971.0,64970.0,0.028]
[1721215261163,0.36230545,64971.0,64970.0,0.028]
[1721215261568,0.67013445,64971.0,64970.0,0.028]
[1721215261969,0.15839145,64971.0,64970.0,0.028]
[1721215262437,0.15839145,64971.0,64970.0,0.489751]
[1721215262782,0.15839145,64971.0,64970.0,0.797585]
[1721215262988,0.15839145,64971.0,64970.0,0.028]
[1721215262989,1.12131374,64971.0,64970.0,0.028]
[1721215263202,1.12131374,64971.0,64949.0,0.153966]
[1721215263203,0.05,64955.0,64949.0,0.153966]
[1721215263400,0.26274174,64971.0,64941.0,0.307971]
[1721215263401,0.05,64948.0,64941.0,0.307971]
[1721215263582,0.1421,64949.0,64948.0,0.06167]
[1721215263583,0.296067,64949.0,64948.0,0.06167]
[1721215263783,0.654,64949.0,64948.0,0.06167]
[1721215264168,0.153988,64940.0,64934.0,0.000913]
[1721215264467,0.1408,64941.0,64934.0,0.000913]
[1721215264468,0.1408,64941.0,64936.0,0.153996]
[1721215264679,0.294787,64941.0,64935.0,0.154922]
[1721215264835,0.294787,64941.0,64940.0,0.307976]
[1721215264836,0.1408,64941.0,64940.0,0.307976]
[1721215265159,0.1408,64941.0,64940.0,0.461964]
[1721215265316,0.1408,64941.0,64937.0,0.307988]
[1721215265515,0.1408,64941.0,64940.0,0.153988]
[1721215265722,0.1408,64941.0,64936.0,0.06168]
[1721215265923,0.05,64937.0,64936.0,0.06168]
[1721215266107,0.05,64937.0,64935.0,0.000924]
[1721215266108,0.1408,64941.0,64938.0,0.153991]
[1721215266315,0.1408,64941.0,64936.0,0.307994]
[1721215266662,0.1408,64941.0,64938.0,0.153992]
[1721215267071,0.1408,64941.0,64935.0,0.062604]
[1721215267284,0.345785,64941.0,64940.0,0.009]
[1721215267410,0.53474524,64941.0,64940.0,0.009]
[1721215267609,0.53474524,64941.0,64935.0,0.000924]
[1721215267610,0.203997,64936.0,64935.0,0.000924]
[1721215267849,0.1372,64936.0,64935.0,0.000924]
[1721215268052,0.749192,64936.0,64935.0,0.000924]
[1721215268262,1.057187,64936.0,64935.0,0.000924]
[1721215268754,0.749192,64936.0,64935.0,0.000924]
[1721215268955,0.1382,64936.0,64935.0,0.009924]
[1721215269172,0.14899985,64936.0,64935.0,0.471924]
[1721215269373,0.19899985,64936.0,64935.0,0.009924]
[1721215269573,0.1392,64936.0,64935.0,0.009924]
[1721215269799,0.1392,64936.0,64935.0,0.163924]
[1721215269800,0.14997843,64936.0,64935.0,0.163924]
[1721215270374,0.14997843,64936.0,64935.0,0.779924]
[1721215270623,0.14997843,64936.0,64935.0,0.471924]
[1721215270828,0.35297543,64936.0,64935.0,0.000924]
[1721215271035,0.30297543,64936.0,64935.0,0.000924]
[1721215271240,0.14897843,64936.0,64935.0,0.154924]
[1721215271434,0.14897843,64936.0,64935.0,0.462924]
[1721215272614,0.14897843,64936.0,64935.0,0.464924]
[1721215272827,0.14797843,64936.0,64935.0,0.462924]
[1721215273238,0.1372,64936.0,64935.0,0.463924]
[1721215273612,0.1372,64936.0,64935.0,0.793924]
[1721215273935,0.1372,64936.0,64935.0,0.794924]
[1721215274141,0.1372,64936.0,64935.0,0.793924]
[1721215274538,0.1372,64936.0,64935.0,0.796924]
[1721215274940,0.0753,64942.0,64941.0,0.153985]
[1721215275190,0.0654,64948.0,64947.0,0.769857]
[1721215275479,0.05,64946.0,64943.0,0.307961]
[1721215275678,0.0654,64948.0,64947.0,0.153971]
[1721215275810,0.0654,64948.0,64947.0,0.461914]
[1721215276008,0.0654,64948.0,64947.0,0.484914]
[1721215276409,0.0654,64948.0,64947.0,0.792857]
[1721215277151,0.0644,64954.0,64953.0,0.153957]
[1721215277298,0.0644,64954.0,64953.0,0.769785]
[1721215277964,0.082,64946.0,64943.0,0.006]
[1721215278103,0.05,64944.0,64943.0,0.159981]
[1721215278306,0.0623,64944.0,64943.0,0.159981]
[1721215278513,0.0623,64944.0,64943.0,0.775905]
[1721215278953,0.1123,64944.0,64943.0,0.461943]
[1721215279159,0.05,64941.0,64940.0,0.153987]
[1721215279368,0.05,64941.0,64936.0,0.307992]
[1721215279369,0.0623,64944.0,64943.0,0.153981]
[1721215280350,0.0633,64944.0,64943.0,0.778905]
[1721215280552,0.0623,64944.0,64943.0,0.769905]
[1721215280796,0.07505232,64944.0,64943.0,0.769905]
[1721215281005,0.07705232,64944.0,64943.0,0.791905]
[1721215281205,0.0633,64944.0,64943.0,0.783905]
[1721215281355,0.0633,64944.0,64943.0,1.114867]
[1721215281553,0.0623,64944.0,64943.0,1.100867]
[1721215281780,0.0623,64944.0,64943.0,1.106867]
[1721215281989,0.082,64946.0,64945.0,0.76988]
[1721215282181,0.082,64946.0,64945.0,0.79288]
[1721215282581,0.082,64946.0,64945.0,0.153976]
[1721215282782,0.082,64946.0,64945.0,0.461928]
[1721215283042,0.09484143,64946.0,64945.0,0.76988]
[1721215283551,0.083,64946.0,64945.0,0.77588]
[1721215283958,0.09584143,64946.0,64945.0,0.77588]
[1721215284295,0.01384143,64946.0,64945.0,1.106832]
[1721215284498,0.001,64946.0,64945.0,1.106832]
[1721215285107,0.001,64946.0,64945.0,1.56916574]
[1721215285386,0.001,64946.0,64945.0,1.57416574]
[1721215285604,0.001,64946.0,64945.0,1.68529342]
[1721215285804,0.001,64946.0,64945.0,1.68029342]
[1721215286038,0.001,64946.0,64945.0,1.56916574]
[1721215286370,0.1409,64946.0,64945.0,0.173976]
[1721215286577,0.1899,64946.0,64945.0,0.014]